bitfinex/quotes_ETHUSD_20251111
["timestamp","ask_amount","ask_price","bid_price","bid_amount"]
[1762843984840,0.437,3554.6,3554.5,4.7320472]
[1762843985271,0.9175,3554.6,3554.5,4.0730472]
[1762843985678,0.437,3554.6,3554.5,4.0730472]
[1762843985975,0.437,3554.6,3554.5,2.8133352]
[1762843987277,0.002,3554.6,3554.5,4.58488055]
[1762843987441,0.002,3554.6,3554.5,5.92325248]
[1762843988244,0.002,3554.6,3554.5,6.32875648]
[1762843988465,0.002,3554.6,3554.5,6.80335648]
[1762843989377,0.002,3554.6,3554.5,6.32875648]
[1762843992392,0.002,3554.6,3554.5,6.80335648]
[1762843992598,0.002,3554.6,3554.5,6.32875648]
[1762843992763,0.002,3554.6,3554.5,6.80335648]
[1762843993090,0.002,3555.5,3554.9,2.81301865]
[1762843993295,0.481,3555.3,3554.9,4.73373065]
[1762843993498,0.9175,3555.0,3554.9,4.73373065]
[1762843993881,0.9175,3555.0,3554.9,4.07273065]
[1762843994081,0.9175,3555.0,3554.9,4.73373065]
[1762843994963,0.437,3555.0,3554.9,4.73373065]
[1762843995473,0.002,3555.0,3554.9,4.73373065]
[1762843995981,0.002,3555.0,3554.9,5.21743065]
[1762843996186,0.002,3555.0,3554.9,5.42111351]
[1762843997391,0.002,3555.0,3554.9,4.73373065]
[1762843999010,0.9594,3555.0,3554.9,4.73373065]
[1762843999368,0.4784,3555.0,3554.9,4.73373065]
[1762844000678,0.002,3555.0,3554.9,4.73373065]
[1762844000908,0.002,3555.0,3554.9,8.47437129]
[1762844002192,0.4784,3555.0,3554.9,8.47437129]
[1762844004004,0.002,3555.0,3554.9,8.47437129]
[1762844004209,0.002,3555.0,3554.9,8.95807129]
[1762844005325,0.002,3555.0,3554.9,8.47437129]
[1762844008035,0.002,3555.0,3554.9,8.92567129]
[1762844009128,0.002,3555.0,3554.9,8.47437129]
[1762844010230,0.002,3555.0,3554.9,8.92567129]
[1762844010840,0.4621,3555.0,3554.9,12.34737129]
[1762844011643,0.9151,3555.0,3554.9,12.34637129]
[1762844012710,0.9151,3555.0,3554.9,10.42765929]
[1762844012908,0.9151,3555.0,3554.9,11.08665929]
[1762844014063,0.4621,3555.0,3554.9,11.08665929]
[1762844014977,0.002,3555.0,3554.9,11.08665929]
[1762844015378,0.002,3555.0,3554.9,11.89188255]
[1762844015561,0.4621,3555.0,3554.9,10.42765929]
[1762844015760,0.002,3555.0,3554.9,10.42765929]
[1762844015960,0.4621,3555.0,3554.9,6.68701865]
[1762844016267,0.002,3555.0,3554.9,10.42765929]
[1762844016450,0.002,3555.0,3554.9,13.5286489]
[1762844016769,0.9151,3555.0,3554.9,3.874]
[1762844016958,2.81304221,3554.9,3554.5,0.001]
[1762844017159,4.38224064,3554.6,3554.5,0.001]
[1762844017344,0.6416,3554.6,3554.5,0.001]
[1762844017545,1.0946,3554.6,3554.5,2.8143352]
[1762844018133,0.6416,3554.6,3554.5,2.8143352]
[1762844018359,0.002,3555.0,3554.9,2.81301865]
[1762844019238,0.002,3555.0,3554.9,4.07273065]
[1762844020167,0.002,3555.0,3554.9,10.14473764]
[1762844020739,0.002,3555.0,3554.9,10.55024164]
[1762844020939,0.002,3555.0,3554.9,10.89298293]
[1762844021350,0.012,3555.9,3555.7,2.81238574]
[1762844021560,0.012,3555.9,3555.7,7.21602638]
[1762844022878,0.012,3555.9,3555.7,7.66732638]
[1762844023759,0.012,3555.9,3555.7,7.21602638]
[1762844023960,0.4621,3555.8,3555.7,7.21602638]
[1762844025053,0.9151,3555.8,3555.7,2.81238574]
[1762844025251,0.9151,3555.8,3555.7,3.47438574]
[1762844026042,0.9151,3555.8,3555.7,2.81238574]
[1762844026853,0.4621,3555.8,3555.7,2.81238574]
[1762844028184,0.9151,3555.8,3555.7,2.81238574]
[1762844028677,0.4621,3555.8,3555.7,2.81238574]
[1762844029242,0.9151,3555.8,3555.7,2.81238574]
[1762844030266,0.4621,3555.8,3555.7,2.81238574]
[1762844030781,0.002,3555.8,3555.7,2.81238574]
[1762844032844,0.002,3555.8,3555.7,3.4789136]
[1762844033050,0.4621,3555.8,3555.7,2.81238574]
[1762844033266,0.9151,3555.8,3555.7,2.81238574]
[1762844033949,0.9151,3555.8,3555.1,2.81284007]
[1762844034148,0.9151,3555.8,3555.6,2.81246484]
[1762844034149,0.4689,3555.7,3555.6,2.81246484]
[1762844038789,0.0159,3555.7,3555.6,2.81246484]
[1762844040383,0.4791,3555.7,3555.6,2.81246484]
[1762844045592,0.4791,3555.7,3555.5,2.836]
[1762844045803,0.4791,3555.7,3554.9,2.837]
[1762844045804,0.4455,3555.6,3554.9,2.837]
[1762844046092,0.4567,3555.0,3554.9,2.81401865]
[1762844046461,0.9199,3555.0,3554.9,2.81401865]
[1762844049994,0.9199,3555.0,3554.9,0.001]
[1762844050801,0.438,3554.6,3554.1,0.001]
[1762844050989,0.0134,3554.2,3554.1,0.001]
[1762844051189,0.447,3554.2,3554.1,3.74280522]
[1762844051420,0.1958,3554.8,3554.7,2.81317692]
[1762844051922,1.1059,3554.8,3554.7,2.81317692]
[1762844052422,1.1059,3554.8,3554.1,2.81462921]
[1762844052423,1.28259,3554.8,3554.1,2.81462921]
[1762844052594,0.0046,3554.6,3554.5,6.55514042]
[1762844052989,0.0046,3554.6,3554.5,2.8133352]
[1762844053190,0.4678,3554.6,3554.5,2.8133352]
[1762844053391,0.0046,3554.6,3554.5,2.8133352]
[1762844053593,0.663,3555.5,3554.5,7.04194042]
[1762844053594,0.4632,3555.3,3554.5,7.04194042]
[1762844053922,0.6428,3554.6,3554.1,0.001]
[1762844054088,0.4426,3554.2,3554.1,2.81465183]
[1762844054528,0.9058,3554.2,3554.1,0.001]
[1762844054713,0.9058,3554.2,3554.1,2.81465183]
[1762844056996,0.4632,3555.2,3554.8,2.81309778]
[1762844057227,0.4632,3555.7,3555.1,3.74180522]
[1762844057415,0.1935,3555.9,3555.6,2.81240283]
[1762844057614,0.1935,3555.9,3554.9,2.81294446]
[1762844057615,0.1935,3555.9,3555.0,2.81293952]
[1762844057816,0.1935,3555.9,3555.7,2.81238574]
[1762844058314,0.4587,3555.8,3555.1,3.74180522]
[1762844058522,0.4555,3555.8,3555.7,2.81238574]
[1762844058914,0.9121,3555.8,3555.7,2.81238574]
[1762844060931,0.002,3555.8,3555.7,2.81238574]
[1762844062109,0.4444,3555.8,3555.7,2.81238574]
[1762844062332,0.8978,3555.8,3555.7,2.81238574]
[1762844063722,0.4444,3555.8,3555.7,2.81238574]
[1762844064633,0.8978,3555.8,3555.7,2.81238574]
[1762844067134,0.8978,3555.8,3555.2,2.81272716]
[1762844067333,0.0045,3555.6,3554.9,0.001]
[1762844067536,0.002,3555.8,3555.7,3.44078574]
[1762844068047,0.4615,3555.8,3555.6,2.81245131]
[1762844068343,0.4615,3555.8,3554.9,0.001]
[1762844068344,0.0046,3555.6,3555.5,2.81254394]
[1762844068552,0.0046,3555.6,3554.9,0.001]
[1762844068851,0.4557,3555.5,3555.4,2.81255781]
[1762844069246,0.9152,3555.5,3554.9,0.001]
[1762844069420,1.1197,3555.5,3555.2,2.81278127]
[1762844069616,0.425,3555.4,3554.9,2.81400684]
[1762844069813,0.4899,3555.0,3554.9,0.001]
[1762844070254,0.9156,3555.0,3554.9,0.001]
[1762844072025,1.5796,3555.0,3554.9,2.81401865]
[1762844072230,1.5796,3555.0,3554.9,0.001]
[1762844072463,0.4899,3555.0,3554.9,2.81401865]
[1762844073152,0.664,3555.1,3555.0,2.81293952]
[1762844073515,1.1235,3555.1,3555.0,2.81293952]
[1762844073817,1.1235,3555.1,3554.9,0.001]
[1762844073818,1.5792,3555.1,3554.9,0.001]
[1762844074018,0.61822,3555.0,3554.9,0.001]
[1762844074416,0.61822,3555.0,3554.9,2.81401865]
[1762844074644,0.61822,3555.0,3554.9,0.001]
[1762844074950,0.002,3555.8,3555.7,2.81238574]
[1762844075246,0.002,3555.8,3555.0,0.4537]
[1762844075452,0.4595,3555.6,3554.9,1.260712]
[1762844075655,0.4595,3555.6,3554.9,0.001]
[1762844075851,0.4557,3555.5,3555.4,2.81262305]
[1762844076257,0.9152,3555.5,3555.4,2.81262305]
[1762844077125,0.9152,3555.5,3555.0,2.81293952]
[1762844077429,0.9152,3555.5,3554.9,0.001]
[1762844077430,0.4557,3555.4,3554.9,0.001]
[1762844077649,0.4595,3555.0,3554.9,0.001]
[1762844077852,1.1245,3555.0,3554.9,0.001]
[1762844078025,1.5802,3555.0,3554.9,0.001]
[1762844078219,1.5802,3555.0,3554.9,2.81401865]
[1762844078420,1.1245,3555.0,3554.9,0.001]
[1762844078667,1.5802,3555.0,3554.9,0.001]
[1762844078873,1.73822,3555.0,3554.9,0.001]
[1762844079324,1.73822,3555.0,3554.9,2.81401865]
[1762844080219,0.61752,3555.0,3554.9,2.81401865]
[1762844080419,1.1245,3555.0,3554.9,0.001]
[1762844080654,1.1245,3555.0,3554.9,2.81401865]
[1762844081253,0.002,3555.5,3555.4,2.81262305]
[1762844081753,0.4615,3555.5,3555.4,2.81262305]
[1762844082251,0.002,3555.5,3555.4,2.81262305]
[1762844082457,0.002,3555.5,3555.4,3.26632305]
[1762844084044,0.002,3555.5,3555.4,2.81262305]
[1762844084245,0.4615,3555.5,3555.4,2.81262305]
[1762844084675,0.002,3555.5,3555.4,2.81262305]
[1762844086289,0.002,3555.5,3555.4,3.26632305]
[1762844086457,0.002,3555.5,3554.9,0.001]
[1762844086458,0.4615,3555.5,3554.9,0.001]
[1762844086882,0.4615,3555.5,3555.4,2.81262305]
[1762844087255,0.9172,3555.5,3555.4,2.81262305]
[1762844089502,0.9172,3555.5,3555.3,2.81267982]
[1762844089706,0.0046,3555.3,3555.2,2.81278127]
[1762844092717,0.0046,3555.3,3555.2,5.64878127]
[1762844098018,0.0066,3555.3,3555.2,5.64878127]
[1762844098344,0.002,3555.3,3555.2,5.85285883]
[1762844098492,0.002,3555.3,3555.2,6.24018913]
[1762844099324,0.002,3555.3,3555.2,5.85285883]
[1762844099796,0.002,3555.7,3555.5,1.259712]
[1762844099989,0.002,3555.7,3555.6,5.61181034]
[1762844100192,0.002,3555.7,3555.6,6.07551034]
[1762844100391,0.002,3555.7,3555.6,6.48101434]
[1762844100632,0.002,3555.7,3555.6,6.48201434]
[1762844101042,0.002,3555.7,3555.6,6.07651034]
[1762844103748,0.002,3555.7,3555.6,3.69009834]
[1762844104044,0.002,3555.7,3555.6,4.15379834]
[1762844106950,1e-08,3555.9,3555.8,4.94792265]
[1762844107154,0.45240001,3555.9,3555.8,4.04643376]
[1762844107453,1e-08,3555.9,3555.8,3.28270665]
[1762844107750,1e-08,3555.9,3555.8,5.03424171]
[1762844107955,1e-08,3555.9,3555.8,5.00611865]
[1762844109066,1e-08,3555.9,3555.8,5.41162265]
[1762844110857,1e-08,3555.9,3555.8,5.66811865]
[1762844111062,1e-08,3555.9,3555.8,6.55690033]
[1762844111926,0.92530001,3555.9,3555.8,2.81230665]
[1762844112361,0.45240001,3555.9,3555.8,2.81230665]
[1762844112728,1.10710001,3555.9,3555.8,2.81230665]
[1762844114542,0.63420001,3555.9,3555.8,2.81230665]
[1762844115833,1.10710001,3555.9,3555.8,2.81230665]
[1762844116450,1.10710001,3555.9,3555.8,2.81330665]
[1762844116876,1.10910001,3555.9,3555.8,2.81330665]
[1762844118666,1.10910001,3555.9,3555.8,0.001]
[1762844119368,0.63620001,3555.9,3555.8,2.81330665]
[1762844119731,0.00200001,3555.9,3555.8,5.59781835]
[1762844119931,1.10920001,3555.9,3555.8,0.001]
[1762844120139,0.46130001,3555.9,3555.8,0.001]
[1762844120359,0.46130001,3555.9,3555.8,2.81330665]
[1762844120881,0.1818,3559.1,3557.8,2.81072572]
[1762844121077,0.6649,3557.9,3556.8,4.53820094]
[1762844121240,0.4731,3557.8,3557.1,1.259712]
[1762844121435,0.4731,3557.8,3556.3,5.00190094]
[1762844121737,0.4731,3557.8,3556.6,1.259712]
[1762844121939,0.4731,3557.8,3557.1,2.81121762]
[1762844122164,0.4593,3557.2,3557.1,2.81121762]
[1762844122693,0.9324,3557.2,3557.1,2.81121762]
[1762844123216,0.9324,3557.2,3556.5,1.931712]
[1762844123364,0.4731,3557.2,3557.1,2.81127885]
[1762844123766,0.9324,3557.2,3557.1,2.81127885]
[1762844124674,0.9324,3557.2,3556.5,4.74339841]
[1762844124675,0.9324,3557.2,3556.1,0.1911]
[1762844124874,0.4731,3557.1,3557.0,2.81135788]
[1762844125074,0.4731,3557.1,3556.6,2.81167189]
[1762844125368,0.4731,3557.1,3556.4,2.81181056]
[1762844125569,0.4731,3557.1,3557.0,2.81135788]
[1762844125804,0.4647,3557.4,3556.4,0.4917]
[1762844125972,0.4647,3557.4,3557.2,2.81118856]
[1762844126176,0.4647,3557.4,3557.0,2.81135553]
[1762844126377,0.4647,3557.4,3557.2,2.81113122]
[1762844126571,0.01,3557.9,3557.8,2.81072572]
[1762844126773,0.01,3557.9,3557.3,0.4759]
[1762844127009,0.6671,3557.9,3557.7,2.81078147]
[1762844127316,0.6671,3557.9,3557.8,2.81072572]
[1762844127462,0.2024,3557.9,3557.3,2.81112079]
[1762844127667,0.2024,3557.9,3557.2,3.73651673]
[1762844127668,0.4774,3557.6,3557.2,3.73651673]
[1762844127905,0.4516,3557.3,3556.6,0.1914]
[1762844128067,0.2024,3557.9,3556.8,3.73651673]
[1762844128068,0.4647,3557.4,3556.8,3.73651673]
[1762844128263,0.4647,3557.4,3557.3,2.81112079]
[1762844128701,0.9289,3557.4,3557.3,2.81112079]
[1762844130519,0.2024,3557.9,3557.3,2.81112079]
[1762844130520,0.2024,3557.9,3557.5,2.81090507]
[1762844130692,0.2024,3557.9,3557.6,2.81087961]
[1762844130894,0.3950812,3557.9,3557.6,2.81087961]
[1762844131090,0.4642,3557.7,3557.2,2.81112098]
[1762844131321,0.4642,3557.7,3557.0,2.81131507]
[1762844131322,0.4647,3557.8,3557.3,2.81111037]
[1762844131498,0.4647,3557.8,3557.3,2.81110462]
[1762844131706,0.4642,3557.4,3557.2,2.81112102]
[1762844131932,0.4642,3557.4,3556.6,0.1914]
[1762844132226,0.9289,3557.4,3557.1,2.81127102]
[1762844132431,0.9289,3557.4,3557.2,2.8111878]
[1762844132629,0.671,3557.7,3556.9,2.81138061]
[1762844132933,0.4647,3557.6,3556.6,0.73395044]
[1762844133233,0.4647,3557.6,3556.5,1.930712]
[1762844133431,0.4647,3557.6,3557.2,2.81118647]
[1762844133814,0.4642,3557.3,3557.0,2.81133251]
[1762844134036,0.4647,3557.3,3557.2,2.81117306]
[1762844134630,0.9289,3557.3,3557.2,2.81117306]
[1762844136131,0.9289,3557.3,3556.9,0.001]
[1762844136352,0.4647,3557.5,3556.9,0.001]
[1762844136508,0.002,3557.6,3557.4,2.81102657]
[1762844137058,0.4774,3557.5,3557.4,2.81102657]
[1762844137255,0.929,3557.5,3557.4,2.81102657]
[1762844137838,0.929,3557.5,3557.1,2.81127055]
[1762844138028,0.4642,3557.2,3557.1,2.81127055]
[1762844139463,0.4667,3557.6,3557.5,2.81096275]
[1762844139830,0.9309,3557.6,3557.5,2.81096275]
[1762844140230,0.64663,3557.6,3557.3,2.81106154]
[1762844140451,1.11133,3557.6,3557.4,2.81103894]
[1762844140652,0.4662,3557.6,3557.4,2.81098156]
[1762844140852,0.4662,3557.6,3557.5,2.81096275]
[1762844141960,0.4662,3557.6,3557.4,2.81102072]
[1762844142183,0.4642,3557.5,3557.4,2.81102072]
[1762844142344,0.4642,3557.5,3556.9,0.001]
[1762844142550,0.4642,3557.0,3556.9,2.81236334]
[1762844143470,0.9289,3557.0,3556.9,2.81236334]
[1762844143850,0.671,3557.2,3556.9,0.001]
[1762844144048,0.671,3557.2,3557.1,2.81127885]
[1762844144273,1.1357,3557.2,3557.1,2.81127885]
[1762844144436,1.5999,3557.2,3557.1,2.81127885]
[1762844146101,0.002,3557.6,3557.1,1.03826506]
[1762844146298,0.002,3557.6,3557.5,2.81096275]
[1762844146501,0.4642,3557.2,3557.1,2.81127885]
[1762844146821,0.674,3557.6,3557.5,2.81096275]
[1762844147025,0.674,3557.6,3557.4,2.81103158]
[1762844147222,0.9289,3557.5,3556.9,0.34996734]
[1762844147401,0.674,3557.6,3557.5,2.81096275]
[1762844147922,0.002,3557.6,3557.5,3.77856275]
[1762844149152,0.002,3557.6,3557.5,7.51398795]
[1762844149912,0.002,3557.6,3557.5,8.18598795]
[1762844150243,0.002,3557.6,3557.5,9.28569239]
[1762844150451,0.002,3557.6,3556.9,0.001]
[1762844150452,0.5,3557.5,3556.9,0.001]
[1762844150603,0.2729,3557.0,3556.9,0.001]
[1762844151102,0.7376,3557.0,3556.9,0.001]
[1762844151443,1.76647294,3557.0,3556.9,0.001]
[1762844151644,1.4116,3557.0,3556.9,0.001]
[1762844153441,4.22295788,3557.0,3556.9,0.001]
[1762844157331,6.38817388,3557.0,3556.9,0.001]
[1762844157933,5.48266988,3557.0,3556.9,0.001]
[1762844162162,0.2729,3557.0,3556.9,0.001]
[1762844162359,4.23615788,3557.0,3556.9,0.001]
[1762844162551,2.12953954,3557.0,3556.9,0.001]
[1762844162750,1.4248,3557.0,3556.9,0.001]
[1762844162947,4.23615788,3557.0,3556.9,0.001]
[1762844163271,1.4248,3557.0,3556.9,0.001]
[1762844163652,4.23615788,3557.0,3556.9,0.001]
[1762844164884,1.4248,3557.0,3556.9,0.001]
[1762844165054,4.37863788,3557.0,3556.9,0.001]
[1762844166452,1.56728,3557.0,3556.9,0.001]
[1762844166793,0.9449,3557.0,3556.9,0.001]
[1762844167398,4.23615788,3557.0,3556.9,0.001]
[1762844167553,4.73615788,3557.0,3556.9,0.001]
[1762844168590,5.99586988,3557.0,3556.9,0.001]
[1762844170665,5.49586988,3557.0,3556.9,0.001]
[1762844171262,6.32657993,3557.0,3556.9,0.001]
[1762844171663,0.672,3557.0,3556.9,0.001]
[1762844171912,0.672,3557.0,3556.9,0.4608]
[1762844172204,0.672,3557.0,3556.9,0.001]
[1762844172410,0.674,3557.0,3556.9,0.001]
[1762844172969,0.674,3557.0,3556.9,0.4608]
[1762844173497,0.674,3557.0,3556.9,3.59946775]
[1762844173998,0.002,3557.0,3556.9,3.59946775]
[1762844174203,0.002,3557.0,3556.9,4.09196775]
[1762844178068,0.002,3557.0,3556.9,0.78803083]
[1762844178273,0.002,3557.0,3556.9,0.001]
[1762844178274,0.4511,3557.0,3556.9,0.001]
[1762844178469,0.002,3557.0,3556.9,3.76473692]
[1762844178692,0.002,3557.0,3556.9,5.02444892]
[1762844180097,0.002,3557.0,3556.9,3.76473692]
[1762844180498,0.002,3557.0,3556.9,3.27223692]
[1762844181418,0.002,3557.0,3556.9,0.4608]
[1762844181573,0.458,3557.0,3556.9,0.001]
[1762844181984,0.002,3557.0,3556.9,2.81243692]
[1762844182346,0.002,3557.0,3556.9,3.27223692]
[1762844183608,0.002,3557.0,3556.9,3.76473692]
[1762844183830,0.002,3557.0,3556.9,3.27223692]
[1762844184125,0.002,3557.0,3556.9,2.81243692]
[1762844185115,0.002,3557.0,3556.9,3.27223692]
[1762844188221,0.002,3557.0,3556.9,4.4093686]
[1762844190597,0.002,3557.0,3556.9,3.9298686]
[1762844192460,0.002,3557.0,3556.9,6.7658686]
[1762844194639,0.002,3557.0,3556.9,7.2453686]
[1762844194817,0.002,3557.0,3556.9,10.67061351]
[1762844203494,0.002,3557.0,3556.9,6.7658686]
[1762844203655,0.002,3557.0,3556.9,7.4298686]
[1762844206092,0.002,3557.0,3556.9,6.7658686]
[1762844208347,0.002,3557.0,3556.9,7.2453686]
[1762844211191,0.002,3557.0,3556.9,6.7658686]
[1762844211404,0.002,3557.0,3556.9,7.2453686]
[1762844215460,0.002,3557.0,3556.9,8.5064806]
[1762844219080,0.002,3557.0,3556.9,8.89743554]
[1762844219277,0.002,3557.0,3556.9,9.30293954]
[1762844228249,0.002,3557.0,3556.9,9.30723954]
[1762844228445,0.002,3557.0,3556.9,12.24878445]
[1762844228853,0.002,3557.0,3556.9,11.85782951]
[1762844229416,0.002,3557.0,3556.9,12.34152951]
[1762844232159,0.4455,3557.0,3556.9,6.9670686]
[1762844232320,0.4455,3557.0,3556.9,6.30943692]
[1762844233922,0.002,3557.0,3556.9,6.30943692]
[1762844234328,0.002,3557.0,3556.9,9.73468183]
[1762844234552,0.002,3557.0,3556.9,10.19598183]
[1762844234735,0.002,3557.0,3556.9,11.49673801]
[1762844234936,0.002,3557.0,3556.9,13.24015001]
[1762844235428,0.002,3557.0,3556.9,12.75645001]
[1762844240275,0.002,3557.0,3556.9,13.24015001]
[1762844240452,0.002,3557.0,3556.9,13.63110495]
[1762844242176,0.002,3557.0,3556.9,13.74366575]
[1762844242939,0.002,3557.0,3556.9,13.17980088]
[1762844243139,0.002,3557.0,3556.9,13.66350088]
[1762844244140,0.002,3557.0,3556.9,13.00250088]
[1762844244369,0.002,3557.0,3556.9,13.66350088]
[1762844250016,0.002,3557.0,3556.9,8.3214659]
[1762844250171,0.4424,3557.0,3556.9,12.71850088]
[1762844250478,0.002,3557.0,3556.9,13.21710088]
[1762844252302,0.002,3557.0,3556.9,14.09955582]
[1762844253118,0.002,3557.0,3556.9,13.70860088]
[1762844253500,0.002,3557.0,3556.9,13.60805582]
[1762844253855,0.002,3557.0,3556.9,13.10945582]
[1762844253977,0.002,3557.0,3556.9,12.71850088]
[1762844256729,0.002,3557.0,3556.9,13.21710088]
[1762844257721,0.002,3557.0,3556.9,12.71850088]
[1762844258178,0.002,3557.0,3556.9,13.21710088]
[1762844258378,0.002,3557.0,3556.9,14.09955582]
[1762844258584,0.002,3557.0,3556.9,14.50505982]
[1762844263049,0.002,3557.0,3556.9,11.66905982]
[1762844264952,0.002,3557.0,3556.9,11.17755982]
[1762844265116,0.002,3557.0,3556.9,11.66905982]
[1762844265948,1e-08,3557.6,3557.5,2.81096275]
[1762844266148,0.44040001,3557.6,3557.5,7.20799773]
[1762844266534,0.44040001,3557.6,3557.5,7.89909773]
[1762844266757,0.44040001,3557.6,3557.5,3.50206275]
[1762844267047,0.44040001,3557.6,3557.5,3.47196275]
[1762844267048,0.93830001,3557.6,3557.5,3.47196275]
[1762844270052,0.93830001,3557.6,3557.5,7.20799773]
[1762844270853,0.93830001,3557.6,3557.5,8.25394303]
[1762844271046,0.44040001,3557.6,3557.5,8.25394303]
[1762844271246,0.93830001,3557.6,3557.5,8.25394303]
[1762844272043,0.44040001,3557.6,3557.5,8.25394303]
[1762844272249,1e-08,3557.6,3557.5,9.17366464]
[1762844272458,1e-08,3557.6,3557.5,9.61406465]
[1762844272763,1e-08,3557.6,3557.5,9.11546465]
[1762844273335,0.43870001,3557.6,3557.5,9.11546465]
[1762844273964,0.43870001,3557.6,3557.5,5.37942967]
[1762844274169,1e-08,3557.6,3557.5,9.19294304]
[1762844274322,0.93660001,3557.6,3557.5,7.20799773]
[1762844274860,0.93660001,3557.6,3557.5,7.20899773]
[1762844277478,0.93660001,3557.6,3557.5,10.04499773]
[1762844279456,1e-08,3557.6,3557.5,10.53639773]
[1762844279843,1e-08,3557.6,3557.5,12.11124303]
[1762844282471,1e-08,3557.6,3557.5,12.56924303]
[1762844282841,1e-08,3557.6,3557.5,12.11124303]
[1762844283037,1e-08,3557.6,3557.5,11.61984303]
[1762844283866,0.46950001,3557.6,3557.5,11.61984303]
[1762844284078,1e-08,3557.6,3557.5,11.61984303]
[1762844284566,1e-08,3557.6,3557.5,12.11124303]
[1762844284771,1e-08,3557.6,3557.5,12.56924303]
[1762844286077,1e-08,3557.6,3557.5,12.97374703]
[1762844286479,1e-08,3557.6,3557.5,12.51574703]
[1762844286779,1e-08,3557.6,3557.5,10.95884303]
[1762844286978,1e-08,3557.6,3557.5,11.61884303]
[1762844287382,0.2017,3558.8,3557.9,0.4914]
[1762844287545,0.01,3558.9,3558.7,2.81001489]
[1762844287946,0.9296,3558.8,3558.7,6.54604987]
[1762844288160,0.9296,3558.8,3558.7,2.81001489]
[1762844288454,0.9296,3558.8,3558.5,6.54614151]
[1762844288455,0.9296,3558.8,3558.4,0.1818]
[1762844288654,0.4695,3558.5,3558.4,2.81025179]
[1762844289064,0.9296,3558.5,3558.4,2.81025179]
[1762844289386,0.4695,3558.5,3558.4,6.54628677]
[1762844289588,0.4695,3558.5,3558.4,7.20628677]
[1762844290385,0.4695,3558.5,3558.2,4.58002485]
[1762844290587,0.4601,3558.5,3558.4,2.81025179]
[1762844290989,0.9296,3558.5,3558.4,2.81025179]
[1762844295508,0.4695,3558.5,3558.4,6.54628677]
[1762844296408,0.4601,3558.8,3558.7,2.81001489]
[1762844296618,0.9296,3558.8,3558.7,2.81001489]
[1762844299525,0.4695,3558.8,3558.7,2.81001489]
[1762844299830,0.9296,3558.8,3558.7,2.81001489]
[1762844300121,0.012,3558.9,3558.8,2.80993593]
[1762844300323,0.012,3558.9,3558.8,7.69737091]
[1762844300680,0.012,3558.9,3558.8,8.15947091]
[1762844301076,0.012,3558.9,3558.8,7.66807091]
[1762844301294,0.9218,3558.9,3558.8,7.66807091]
[1762844301916,0.9218,3558.9,3558.8,7.20597091]
[1762844302944,0.012,3558.9,3558.8,9.0643685]
[1762844303237,0.012,3558.9,3558.8,7.20597091]
[1762844303405,0.012,3558.9,3558.8,7.69737091]
[1762844303738,0.012,3558.9,3558.8,7.20597091]
[1762844303948,0.012,3558.9,3558.8,7.69737091]
[1762844304643,0.012,3558.9,3558.8,9.1593085]
[1762844305005,0.4827,3558.9,3558.8,4.93187352]
[1762844305204,0.4827,3558.9,3558.8,3.46993593]
[1762844307036,0.012,3558.9,3558.8,3.46993593]
[1762844307714,1.1162,3558.9,3558.8,3.46993593]
[1762844308142,0.4805,3558.9,3558.8,3.46993593]
[1762844308302,0.012,3558.9,3558.8,3.94403593]
[1762844309516,0.012,3558.9,3558.8,3.46993593]
[1762844309719,0.6215,3558.9,3558.8,2.80993593]
[1762844310002,1.1132,3558.9,3558.8,2.80993593]
[1762844310227,0.4772,3558.9,3558.8,2.80993593]
[1762844311717,0.012,3558.9,3558.8,3.28403593]
[1762844312699,0.012,3558.9,3558.8,2.80993593]
[1762844314939,0.4189,3558.9,3558.8,2.80993593]
[1762844316045,0.002,3559.3,3559.2,2.80962013]
[1762844316544,0.8956,3559.3,3559.2,3.46962013]
[1762844316714,0.8956,3559.3,3559.2,3.96512013]
[1762844317251,0.002,3559.3,3559.2,4.43922013]
[1762844317434,0.002,3559.3,3559.2,6.38694579]
[1762844317953,0.002,3559.3,3559.2,5.91324579]
[1762844318160,0.002,3559.3,3559.2,7.64665779]
[1762844318306,0.002,3559.3,3559.2,6.98665779]
[1762844318506,0.002,3559.3,3559.2,7.17295779]
[1762844318957,0.002,3559.3,3559.2,7.64665779]
[1762844321320,0.002,3559.3,3559.2,10.00895779]
[1762844321571,0.002,3559.3,3559.2,9.34895779]
[1762844321869,0.4705,3559.3,3559.2,5.43814579]
[1762844322036,0.4705,3559.3,3559.2,8.85989995]
[1762844322232,0.8787,3559.3,3559.2,8.85989995]
[1762844322437,0.8787,3559.3,3559.2,3.30512013]
[1762844322658,0.8787,3559.3,3559.2,2.80962013]
[1762844328681,0.8787,3559.3,3558.9,0.001]
[1762844329001,0.4955,3559.2,3559.0,2.80977802]
[1762844329197,0.3814,3559.0,3558.9,2.81084859]
[1762844329568,0.8757,3559.0,3558.9,2.81084859]
[1762844330709,0.3814,3559.0,3558.9,2.81084859]
[1762844330869,0.8757,3559.0,3558.9,2.81084859]
[1762844331271,0.8757,3559.0,3558.9,0.001]
[1762844331877,0.8757,3559.0,3558.9,2.81085697]
[1762844333598,1.5347,3559.0,3558.9,0.001]
[1762844333794,0.5,3558.7,3558.0,0.001]
[1762844333995,0.6951,3558.6,3558.4,2.81024449]
[1762844334196,0.3814,3558.5,3558.4,2.81024449]
[1762844334432,0.8757,3558.5,3558.3,2.81031587]
[1762844334636,0.8757,3558.5,3558.1,2.81048874]
[1762844334637,1.33845849,3558.5,3558.4,2.81025179]
[1762844334934,0.1996,3558.6,3558.5,2.81017282]
[1762844335230,0.6681,3558.6,3558.5,2.81017282]
[1762844335538,1.0763,3558.6,3558.5,2.81017282]
[1762844339765,0.659,3558.8,3558.7,2.81001489]